{"text_format":"3","workbook":"xlsx","n_sheets":4,"sheets":["Začátek","Výdaje","Příjmy","Souhrn zisků a ztrát"],"not_rendered":{"charts":1},"read":"whole","date_system":"1900"}

{"sheet":"Začátek","index":0,"n_rows":8,"n_cols":2,"rows_kept":8}
[null,"INFORMACE O TÉTO ŠABLONĚ"]
[null,"Pomocí tohoto sešitu Rozpočet události můžete sledovat výdaje vynaložené na událost a příjmy vytvořené událostí."]
[null,"Vyplňte název události a zadejte údaje do tabulek v listech Výdaje a Příjmy."]
[null,"Celkové výdaje a celkové příjmy se vypočítají automaticky."]
[null,"Souhrn zisků a ztrát a graf se automaticky aktualizuje v listu Souhrn zisků a ztrát."]
[null,"Poznámka: "]
[null,"Další pokyny jsou k dispozici ve sloupci A na každém listu. Tento text je záměrně skrytý. Pokud ho chcete odebrat, vyberte sloupec A a stiskněte klávesu ODSTRANIT. Pokud ho chcete zobrazit, vyberte sloupec A a změňte barvu písma."]
[null,"Další informace o tabulkách můžete získat tak, že v tabulce stisknete klávesu SHIFT a potom F10, vyberete možnost TABULKA a pak vyberete ALTERNATIVNÍ TEXT."]

{"sheet":"Výdaje","index":1,"n_rows":32,"n_cols":8,"rows_kept":32,"merged":[[0,1,0,4],[2,1,3,1]]}
["Zadejte odhad a skutečnost výdaje pro každou kategorii v příslušné tabulce na listu. Zadáním názvu události do buňky D1 můžete upravit název tohoto a dalších listů. Podnadpis tohoto listu je v buňce H1. V buňkách v tomto sloupci jsou užitečné pokyny k tomu, jak tento list používat. Další pokyn je v buňce A3.","Rozpočet události pro název události",{"$nulls":5},"VÝDAJE"]
[]
["Popisek Celkové výdaje je v buňce vpravo, popisek Odhad je v buňce G3 a popisek Skutečnost v buňce H3.","CELKOVÉ VÝDAJE",{"$nulls":4},"Odhad","Skutečnost"]
["Celkové odhad výdaje v buňce G4 a celkové skutečnost výdaje v buňce H4 se vypočítají automaticky. Další pokyn je v buňce A6.",{"$nulls":5},{"$f":"SUM(C11,C19,C25,C32,G11,G19,G24)","v":{"v":882,"d":"882.00 Kč"}},{"$f":"SUM(D11,D19,D25,D32,H11,H19,H24)","v":{"v":333,"d":"333.00 Kč"}}]
[]
["Výdaje na prostory zadejte do tabulky, která začíná v buňce napravo, a výdaje na občerstvení zadejte do tabulky, která začíná v buňce F6. Další pokyn je v buňce A13.","Prostory","Odhad","Skutečnost",null,"Občerstvení","Odhad","Skutečnost"]
[null,"Poplatky za pronájem prostor",{"v":500,"d":"500.00 Kč"},null,null,"Jídlo"]
[null,"Personál v místě konání",{"$nulls":3},"Nápoje",{"v":20,"d":"20.00 Kč"}]
[null,"Vybavení",{"$nulls":3},"Ubrusy",null,{"v":20,"d":"20.00 Kč"}]
[null,"Stoly a židle",{"$nulls":3},"Zaměstnanci a spropitné"]
[null,"Celkem",{"$f":"SUBTOTAL(109,VýdajeProstory[Odhad])","v":{"v":500,"d":"500.00 Kč"}},{"$f":"SUBTOTAL(109,VýdajeProstory[Skutečnost])","v":{"v":0,"d":"0.00 Kč"}},null,"Celkem",{"$f":"SUBTOTAL(109,VýdajeObčerstvení[Odhad])","v":{"v":20,"d":"20.00 Kč"}},{"$f":"SUBTOTAL(109,VýdajeObčerstvení[Skutečnost])","v":{"v":20,"d":"20.00 Kč"}}]
[]
["Výdaje na výzdoba zadejte do tabulky, která začíná v buňce napravo, a výdaje na program zadejte do tabulky, která začíná v buňce F13. Další pokyn je v buňce A21.","Výzdoba","Odhad","Skutečnost",null,"Program","Odhad","Skutečnost"]
[null,"Květiny",{"v":200,"d":"200.00 Kč"},{"v":300,"d":"300.00 Kč"},null,"Účinkující"]
[null,"Svíčky",{"$nulls":3},"Moderátoři",{"v":30,"d":"30.00 Kč"}]
[null,"Osvětlení",{"$nulls":3},"Cestování"]
[null,"Balonky",{"$nulls":3},"Hotel"]
[null,"Papírová výzdoba",{"$nulls":3},"Jiné"]
[null,"Celkem",{"$f":"SUBTOTAL(109,VýdajeVýzdoba[Odhad])","v":{"v":200,"d":"200.00 Kč"}},{"$f":"SUBTOTAL(109,VýdajeVýzdoba[Skutečnost])","v":{"v":300,"d":"300.00 Kč"}},null,"Celkem",{"$f":"SUBTOTAL(109,VýdajeProgram[Odhad])","v":{"v":30,"d":"30.00 Kč"}},{"$f":"SUBTOTAL(109,VýdajeProgram[Skutečnost])","v":{"v":0,"d":"0.00 Kč"}}]
[]
["Výdaje na propagace zadejte do tabulky, která začíná v buňce napravo, a výdaje na ceny zadejte do tabulky, která začíná v buňce F21. Další pokyn je v buňce A27.","Propagace","Odhad","Skutečnost",null,"Ceny","Odhad","Skutečnost"]
[null,"Grafické práce",{"$nulls":3},"Stuhy, plakety, poháry"]
[null,"Fotokopírování a tisk",{"v":20,"d":"20.00 Kč"},null,null,"Dary",{"v":100,"d":"100.00 Kč"}]
[null,"Poštovné",{"$nulls":3},"Celkem",{"$f":"SUBTOTAL(109,VýdajeCeny[Odhad])","v":{"v":100,"d":"100.00 Kč"}},{"$f":"SUBTOTAL(109,VýdajeCeny[Skutečnost])","v":{"v":0,"d":"0.00 Kč"}}]
[null,"Celkem",{"$f":"SUBTOTAL(109,VýdajePropagace[Odhad])","v":{"v":20,"d":"20.00 Kč"}},{"$f":"SUBTOTAL(109,VýdajePropagace[Skutečnost])","v":{"v":0,"d":"0.00 Kč"}}]
[]
["Různé výdaje zadejte do tabulky, která začíná v buňce napravo.","Různé","Odhad","Skutečnost"]
[null,"Telefon",null,{"v":13,"d":"13.00 Kč"}]
[null,"Doprava",{"v":12,"d":"12.00 Kč"}]
[null,"Kancelářské potřeby"]
[null,"Faxové služby"]
[null,"Celkem",{"$f":"SUBTOTAL(109,VýdajeRůzné[Odhad])","v":{"v":12,"d":"12.00 Kč"}},{"$f":"SUBTOTAL(109,VýdajeRůzné[Skutečnost])","v":{"v":13,"d":"13.00 Kč"}}]

{"sheet":"Příjmy","index":2,"n_rows":29,"n_cols":7,"rows_kept":29,"merged":[[0,1,0,3],[2,1,3,1]]}
["Do příslušných tabulek na tomto listu zadejte předpokládané a skutečné příjmy v jednotlivých kategoriích. Název listu se automaticky aktualizuje v buňkách napravo. Podnadpis je v buňce G1. V buňkách v tomto sloupci jsou užitečné pokyny k tomu, jak tento list používat. Další pokyn je v buňce A3.",{"$f":"Výdaje!B1","v":"Rozpočet události pro název události"},{"$nulls":4},"PŘÍJMY"]
[]
["Popisek Celkové příjmy je v buňce vpravo, popisek Odhad je v buňce F3 a popisek Skutečnost v buňce G3.","CELKOVÉ PŘÍJMY",{"$nulls":3},"Odhad","Skutečnost"]
["Celkové předpokládané příjmy se automaticky vypočítají v buňce F4 a celkové skutečné příjmy v buňce G4.",{"$nulls":4},{"$f":"SUM(Vstupné[[#Totals],[Předpokládaný příjem]],ReklamyVProgramu[[#Totals],[Předpokládaný příjem]],VystavovateléAProdejci[[#Totals],[Předpokládaný příjem]],ProdejPředmětů[[#Totals],[Předpokládaný příjem]])","v":{"v":1936,"d":"Kč 1,936.00"}},{"$f":"SUM(Vstupné[[#Totals],[Skutečný příjem]],ReklamyVProgramu[[#Totals],[Skutečný příjem]],VystavovateléAProdejci[[#Totals],[Skutečný příjem]],ProdejPředmětů[[#Totals],[Skutečný příjem]])","v":{"v":1831,"d":"Kč 1,831.00"}}]
["V buňce vpravo je popisek Vstupné.","VSTUPNÉ"]
["Předpokládaný a skutečný počet vstupenek a ceny jednotlivých kategorií vstupenek zadejte do tabulky, která začíná v buňce F6. Předpokládané a skutečné příjmy za vstupné se vypočítají automaticky. Další pokyn je v buňce A11.","Odhad","Skutečnost","Typ","Cena","Předpokládaný příjem","Skutečný příjem"]
[null,300,278,"Dospělí @",{"v":5,"d":"5.00 Kč"},{"$f":"B7*E7","v":{"v":1500,"d":"1,500.00 Kč"}},{"$f":"C7*E7","v":{"v":1390,"d":"1,390.00 Kč"}}]
[null,197,195,"Děti @",{"v":2,"d":"2.00 Kč"},{"$f":"B8*E8","v":{"v":394,"d":"394.00 Kč"}},{"$f":"C8*E8","v":{"v":390,"d":"390.00 Kč"}}]
[null,42,51,"Ostatní @",{"v":1,"d":"1.00 Kč"},{"$f":"B9*E9","v":{"v":42,"d":"42.00 Kč"}},{"$f":"C9*E9","v":{"v":51,"d":"51.00 Kč"}}]
[null,"Celkem",{"$nulls":3},{"$f":"SUBTOTAL(109,Vstupné[Předpokládaný příjem])","v":{"v":1936,"d":"1,936.00 Kč"}},{"$f":"SUBTOTAL(109,Vstupné[Skutečný příjem])","v":{"v":1831,"d":"1,831.00 Kč"}}]
["Popisek Reklamy v programu je v buňce napravo.","REKLAMY V PROGRAMU"]
["Předpokládaný a skutečný počet reklam v programu a jejich ceny zadejte do tabulky, která začíná v buňce napravo. Předpokládané a skutečné příjmy za reklamy se vypočítají automaticky. Další pokyny najdete v buňce A17.","Odhad","Skutečnost","Typ","Cena","Předpokládaný příjem","Skutečný příjem"]
[null,12,null,"Celá strana @",null,{"$f":"B13*E13","v":{"v":0,"d":"0.00 Kč"}},{"$f":"C13*E13","v":{"v":0,"d":"0.00 Kč"}}]
[null,null,158,"Polovina strany @",null,{"$f":"B14*E14","v":{"v":0,"d":"0.00 Kč"}},{"$f":"C14*E14","v":{"v":0,"d":"0.00 Kč"}}]
[null,4,null,"Čtvrtina strany @",null,{"$f":"B15*E15","v":{"v":0,"d":"0.00 Kč"}},{"$f":"C15*E15","v":{"v":0,"d":"0.00 Kč"}}]
[null,"Celkem",{"$nulls":3},{"$f":"SUBTOTAL(109,ReklamyVProgramu[Předpokládaný příjem])","v":{"v":0,"d":"0.00 Kč"}},{"$f":"SUBTOTAL(109,ReklamyVProgramu[Skutečný příjem])","v":{"v":0,"d":"0.00 Kč"}}]
["Popisek Vystavovatelé, prodejci je v buňce napravo.","VYSTAVOVATELÉ, PRODEJCI"]
["Předpokládaný a skutečný počet vystavovatelů a prodejců a sazby za stánky zadejte do tabulky, která začíná v buňce napravo. Předpokládané a skutečné příjmy se vypočítají automaticky. Další pokyny najdete v buňce A23.","Odhad","Skutečnost","Typ","Cena","Předpokládaný příjem","Skutečný příjem"]
[null,23,null,"Velký stánek @",null,{"$f":"B19*E19","v":{"v":0,"d":"0.00 Kč"}},{"$f":"C19*E19","v":{"v":0,"d":"0.00 Kč"}}]
[null,354,null,"Střední stánek @",null,{"$f":"B20*E20","v":{"v":0,"d":"0.00 Kč"}},{"$f":"C20*E20","v":{"v":0,"d":"0.00 Kč"}}]
[null,56,null,"Malý stánek @",null,{"$f":"B21*E21","v":{"v":0,"d":"0.00 Kč"}},{"$f":"C21*E21","v":{"v":0,"d":"0.00 Kč"}}]
[null,"Celkem",{"$nulls":3},{"$f":"SUBTOTAL(109,VystavovateléAProdejci[Předpokládaný příjem])","v":{"v":0,"d":"0.00 Kč"}},{"$f":"SUBTOTAL(109,VystavovateléAProdejci[Skutečný příjem])","v":{"v":0,"d":"0.00 Kč"}}]
["Popisek Prodej předmětů je v buňce napravo.","PRODEJ PŘEDMĚTŮ"]
["Předpokládaný a skutečný počet prodaných položek a jejich ceny zadejte do tabulky, která začíná v buňce napravo. Předpokládané a skutečné příjmy se vypočítají automaticky.","Odhad","Skutečnost","Typ","Cena","Předpokládaný příjem","Skutečný příjem"]
[{"$nulls":3},"Položky @",null,{"$f":"B25*E25","v":{"v":0,"d":"0.00 Kč"}},{"$f":"C25*E25","v":{"v":0,"d":"0.00 Kč"}}]
[null,123,null,"Položky @",null,{"$f":"B26*E26","v":{"v":0,"d":"0.00 Kč"}},{"$f":"C26*E26","v":{"v":0,"d":"0.00 Kč"}}]
[{"$nulls":3},"Položky @",null,{"$f":"B27*E27","v":{"v":0,"d":"0.00 Kč"}},{"$f":"C27*E27","v":{"v":0,"d":"0.00 Kč"}}]
[null,13,null,"Položky @",null,{"$f":"B28*E28","v":{"v":0,"d":"0.00 Kč"}},{"$f":"C28*E28","v":{"v":0,"d":"0.00 Kč"}}]
[null,"Celkem",{"$nulls":3},{"$f":"SUBTOTAL(109,ProdejPředmětů[Předpokládaný příjem])","v":{"v":0,"d":"0.00 Kč"}},{"$f":"SUBTOTAL(109,ProdejPředmětů[Skutečný příjem])","v":{"v":0,"d":"0.00 Kč"}}]

{"sheet":"Souhrn zisků a ztrát","index":3,"n_rows":8,"n_cols":7,"rows_kept":8,"merged":[[0,1,0,3],[2,4,11,6]]}
["Souhrn zisků a ztrát a graf zobrazující celkové příjmy a výdaje se automaticky aktualizují v tomto listu. Název listu se automaticky aktualizuje v buňkách napravo. Podnadpis je v buňce G1 a G2. V buňkách v tomto sloupci jsou užitečné pokyny k tomu, jak tento list používat. Další pokyn je v buňce A3.",{"$f":"Výdaje!B1","v":"Rozpočet události pro název události"},{"$nulls":4},"Souhrn zisků"]
[{"$nulls":6},"a ztrát"]
["Pruhový graf zobrazující porovnání předpokládaných a skutečných příjmů a výdajů je v buňce E3.",{"$nulls":3},"Pruhový graf zobrazující porovnání předpokládaných a skutečných příjmů a výdajů je v této buňce."]
["Tabulka souhrnu začínající v buňce vpravo se aktualizuje automaticky. Další pokyn je v buňce A8."," Celkem","Odhad","Skutečnost"]
[null,"Celkové příjmy",{"$f":"Příjmy!F4","v":{"v":1936,"d":"1,936.00 Kč"}},{"$f":"Příjmy!G4","v":{"v":1831,"d":"1,831.00 Kč"}}]
[null,"Celkové výdaje",{"$f":"Výdaje!G4","v":{"v":882,"d":"882.00 Kč"}},{"$f":"Výdaje!H4","v":{"v":333,"d":"333.00 Kč"}}]
[]
["Předpokládaný celkový zisk nebo ztráta se automaticky vypočítají v buňce C8 a skutečný celkový zisk nebo ztráta se automaticky vypočítají v buňce D8.","Celkový zisk              (nebo ztráta)",{"$f":"C5-C6","v":{"v":1054,"d":"1,054.00 Kč"}},{"$f":"D5-D6","v":{"v":1498,"d":"1,498.00 Kč"}}]